Cogmind - Beta 12 @@@ ROGUE MODE // 2023.04.30 @ 21:23:16 Player: DreamweaverKara Result: Destroyed by Y-45 Defender with Heavy Assault Rifle Performance ------------- Evolutions (1) 500 Regions Visited (3) 600 Robots Destroyed (31) 155 Value Destroyed (754) 754 Prototype IDs (4) 80 Alien Tech Used (0) 0 Bonus (50) 50 TOTAL SCORE: 2139 Bonus ------- High Alert Combat Kills 50 Cogmind --------- Core Integrity 0/400 Matter 198/300 Energy 69/100 System Corruption 0% Temperature Cool (9) Movement Core (50) Location -9/Storage Parts ------- > --- POWER (2) -------- (None) > --- PROPULSION (2) --- (None) > --- UTILITY (3) ------ (None) > --- WEAPON (2) ------- Small Laser > --- INVENTORY (5) ---- Aluminum Leg Peak State ------------ > --- POWER ------------ Heavy Ion Engine > --- PROPULSION ------- Aluminum Leg > --- UTILITY ---------- ECM Suite > --- WEAPON ----------- Guided EMP Blaster > --- INVENTORY -------- (None) [Rating: 17] Favorites ----------- Power Light Ion Engine Engine Light Ion Engine Propulsion Aluminum Leg Treads Improved Treads Leg Aluminum Leg Wheel Wheel Utility ECM Suite Device ECM Suite Protection Hardened Light Armor Plating Weapon Grenade Launcher Energy Gun Small Laser Ballistic Gun Assault Rifle Launcher Grenade Launcher Build | -11 -10 -9 -9 ------- Run | Jun Mat Mat Sto Slots Evolved 2 | . . 2 . Power 1 | . . 1 . Propulsion . | . . . . Utility 1 | . . 1 . Weapon . | . . . . Parts Attached 27 | 5 6 4 12 Power 5 | 1 1 1 2 Engine 5 | 1 1 1 2 Core . | . . . . Reactor . | . . . . Propulsion 8 | 2 2 . 4 Treads 1 | . . . 1 Leg 5 | . 2 . 3 Wheel 2 | 2 . . . Hover . | . . . . Flight . | . . . . Utility 3 | . 2 . 1 Device 2 | . 2 . . Storage . | . . . . Processor . | . . . . Hackware . | . . . . Protection 1 | . . . 1 Artifact . | . . . . Weapon 11 | 2 1 3 5 Energy Gun 3 | 1 . . 2 Energy Cannon . | . . . . Ballistic Gun 3 | 1 . 1 1 Ballistic Cannon . | . . . . Launcher 5 | . 1 2 2 Special Weapon . | . . . . Impact Weapon . | . . . . Slashing Weapon . | . . . . Piercing Weapon . | . . . . Special Melee Weapon . | . . . . Unidentified Prototypes 2 | . . . 2 Parts Lost 18 | . 2 2 14 Power 3 | . . . 3 Propulsion 6 | . 2 . 4 Utility 3 | . . 1 2 Weapon 6 | . . 1 5 Highest Loss Streak 7 | . 2 1 7 To Critical Strikes . | . . . . Average Slot Usage (%) 59 | . 74 84 35 Engine 14 | . 14 22 9 Leg 13 | . 14 22 7 Wheel 2 | . 10 . . Device 10 | . 6 19 8 Energy Gun 5 | . 14 4 . Ballistic Gun 4 | . 8 4 1 Launcher 7 | . 5 11 6 Naked Turns 46 | . . . 46 Heaviest Build 20 | 6 13 18 20 Greatest Support 26 | 26 26 20 23 Greatest Overweight (x) 4 | . . . 4 Average Overweight (x) . | . . . . Largest Inventory Capacity 5 | 5 5 5 5 Average Capacity 5 | 5 5 5 5 Most Carried 5 | 3 5 5 5 Average Carried 2 | 1 3 4 . Final Capacity 5 | 5 5 5 5 Final Carried 5 | 3 5 5 1 Class Distribution -------------------- 100% | Mutant Dominant Class ---------------- Mutant | -10/Materials Mutant | -9/Materials Mutant | -9/Storage Resources | -11 -10 -9 -9 ----------- Run | Jun Mat Mat Sto Matter Collected 554 | 228 153 . 173 Remotely . | . . . . Salvage Created 752 | . 305 9 438 Parts 56 | . 24 1 31 Haulers Intercepted 1 | . 1 . . Recyclers Shooed 1 | . . . 1 Parts Field Recycled . | . . . . Retrieved Matter . | . . . . Parts Self-Destructed . | . . . . Prevented . | . . . . Kills | -11 -10 -9 -9 ------- Run | Jun Mat Mat Sto Combat Hostiles Destroyed 23 | . 9 1 13 Guns 8 | . 5 . 3 AOE 15 | . 4 1 10 Classes Destroyed 8 | . 5 . 3 Worker 1 | . 1 . . Builder 2 | . . . 2 Hauler 1 | . 1 . . Recycler 2 | . . . 2 Watcher 2 | . 1 . 1 Swarmer 9 | . 3 . 6 Grunt 13 | . 6 1 6 Sentry 1 | . . . 1 Best Kill Streak 7 | . 7 1 7 Combat Bots Only 5 | . 5 1 3 Max Kills in Single Turn 3 | . 3 1 3 Gunslinging . | . . . . Exploded 3 | . 2 1 3 Melee . | . . . . Uniques/NPCs Destroyed . | . . . . Combat | -11 -10 -9 -9 -------- Run | Jun Mat Mat Sto Damage Taken 2014 | . 542 171 1301 Core 586 | . 177 13 396 Absorbed by Shields . | . . . . Core Remaining (%) 64 | 100 29 . . Volleys Fired 64 | . 27 8 29 Largest 2 | . 2 2 2 Hottest 70 | . 70 70 65 Shots Fired 93 | . 51 12 30 Gun 71 | . 47 6 18 Cannon . | . . . . Launcher 22 | . 4 6 12 Special . | . . . . Kinetic 33 | . 20 5 8 Thermal 38 | . 27 1 10 Explosive 16 | . 4 6 6 Electromagnetic 6 | . . . 6 Robot Hit Streak 12 | . 6 4 12 Robot Miss Streak 4 | . 4 3 2 Penetration Max . | . . . . Secondary Targets 2 | . 2 . . Max Gunslinging Chain 1 | . 1 . . Shots Hit Robots 58 | . 29 7 22 Core Hits 52 | . 17 2 33 Critical Kills . | . . . . Critical Parts Destroyed . | . . . . Critical Strikes . | . . . . Melee Attacks . | . . . . Impact . | . . . . Slashing . | . . . . Piercing . | . . . . Sneak Attacks . | . . . . Combat Hostiles . | . . . . Follow-up Attacks . | . . . . Damage Inflicted 1872 | . 563 294 1015 Guns 516 | . 298 57 161 Cannons . | . . . . Explosions 1288 | . 260 217 811 Melee . | . . . . Ramming 68 | . 5 20 43 Kinetic 273 | . 169 46 58 Thermal 312 | . 129 11 172 Explosive 996 | . 260 217 519 Electromagnetic 223 | . . . 223 Impact . | . . . . Slashing . | . . . . Piercing . | . . . . Highest Corruption . | . . . . Average Corruption . | . . . . Corruption Purged . | . . . . Corruption Blocked . | . . . . Overload Shots . | . . . . Overflow Damage 36 | . . 16 20 Projectiles . | . . . . Explosions 36 | . . 16 20 Melee . | . . . . Knockbacks 1 | . . 1 . Impact 1 | . . 1 . Kinetic . | . . . . Secondary . | . . . . Self-Inflicted Damage 221 | . . 30 191 Shots 8 | . . 2 6 Rammed 8 | . . . 8 Targets Rammed 17 | . 2 5 10 Kicked 9 | . 2 5 2 Crushed . | . . . . Highest Temperature 84 | . 68 48 84 Average Temperature 24 | . 29 16 20 Received Heat Transfer 579 | . 96 48 435 Siege Activations . | . . . . Robots Corrupted . | . . . . Combat Hostiles . | . . . . Parts Fried 1 | . . . 1 Impact Corruptions . | . . . . Robots Melted . | . . . . Combat Hostiles . | . . . . Parts Melted 1 | . . . 1 Heat Transferred 595 | . 300 25 270 Parts Sabotaged . | . . . . Parts Stolen . | . . . . Parts Stripped . | . . . . Power Chain Reactions 4 | . . . 4 Missiles Intercepted . | . . . . Alert | -11 -10 -9 -9 ------- Run | Jun Mat Mat Sto Peak Influence 639 | . 379 315 639 Initial 159 | . . 159 132 Average 259 | . 156 220 389 Maximum Alert Level 2 | . 1 1 2 Low Security (%) 35 | 100 62 41 4 Level 1 49 | . 37 58 60 Level 2 14 | . . . 34 Level 3 . | . . . . Level 4 . | . . . . Level 5 . | . . . . High Security . | . . . . Max Security . | . . . . Squads Dispatched 7 | . 2 2 3 Investigation 1 | . 1 . . Extermination . | . . . . Reinforcement 6 | . 1 2 3 Assault . | . . . . Garrison . | . . . . Intercept . | . . . . Searches Triggered . | . . . . Construction Impeded 2 | . . 1 1 Haulers Reinforced . | . . . . Active Scanning Responses . | . . . . Cargo Convoy Interrupts . | . . . . Stealth | -11 -10 -9 -9 --------- Run | Jun Mat Mat Sto Distress Signals 3 | . 2 . 1 Communications Jammed . | . . . . Distress Signals . | . . . . Times Spotted 59 | . 25 8 26 Peak Tracking Total 9 | . 9 3 9 Tactical Retreats 7 | . 3 . 4 Traps | -11 -10 -9 -9 ------- Run | Jun Mat Mat Sto Traps Triggered 3 | . 1 . 2 Indirectly . | . . . . Trap Hack Attempts . | . . . . Triggered . | . . . . Disarmed . | . . . . Reprogrammed . | . . . . Reused . | . . . . Traps Extracted . | . . . . Installed . | . . . . Triggered . | . . . . Machines | -11 -10 -9 -9 ---------- Run | Jun Mat Mat Sto Machines Disabled 12 | . 3 2 7 Max in Single Turn 2 | . 2 2 2 Machines Repaired . | . . . . Machines Sabotaged . | . . . . Overloaded Fab Kills . | . . . . Hacking | -11 -10 -9 -9 --------- Run | Jun Mat Mat Sto Machines Accessed 5 | . . 4 1 Terminals 4 | . . 3 1 Fabricators . | . . . . Repair Stations . | . . . . Recycling Units 1 | . . 1 . Scanalyzers . | . . . . Garrison Access . | . . . . Total Hacks 15 | . . 11 4 Successful 7 | . . 6 1 Failed 8 | . . 5 3 Catastrophic 1 | . . 1 . Database Lockouts . | . . . . Manual . | . . . . Terminals 13 | . . 9 4 Fabricators . | . . . . Repair Stations . | . . . . Recycling Units 2 | . . 2 . Scanalyzers . | . . . . Garrison Access . | . . . . Terminal Hacks 6 | . . 5 1 Record 1 | . . 1 . Prototype ID Bank 1 | . . 1 . Open Door 1 | . . . 1 Terminal Index 1 | . . 1 . Dispatch Records 1 | . . 1 . Zone Layout 1 | . . 1 . Fabricator Hacks . | . . . . Repair Station Hacks . | . . . . Recycling Unit Hacks 1 | . . 1 . Retrieve Components 1 | . . 1 . Scanalyzer . | . . . . Garrison Access Hacks . | . . . . Unauthorized Hacks . | . . . . Terminals . | . . . . Fabricators . | . . . . Repair Stations . | . . . . Recycling Units . | . . . . Scanalyzers . | . . . . Garrison Access . | . . . . Data Cores Recovered . | . . . . Used . | . . . . Hacking Detections 4 | . . 3 1 Full Trace Events 1 | . . 1 . Feedback Events . | . . . . Feedback Blocked . | . . . . Robot Schematics Acquired . | . . . . Robots Built . | . . . . Authchips . | . . . . Time . | . . . . Total Robot Build Rating . | . . . . Part Schematics Acquired . | . . . . Parts Built . | . . . . Authchips . | . . . . Time . | . . . . Total Part Build Rating . | . . . . Parts Repaired . | . . . . Time . | . . . . Parts Recycled . | . . . . Recycled Matter . | . . . . Retrieved Matter . | . . . . Retrieved Components 2 | . . 2 . Parts Scanalyzed . | . . . . Part Schematics Acquired . | . . . . Parts Damaged . | . . . . Bothacking | -11 -10 -9 -9 ------------ Run | Jun Mat Mat Sto Used RIF Installer . | . . . . Robots Hacked . | . . . . Non-combat . | . . . . Combat . | . . . . Robot Hacks Applied . | . . . . Relay Couplers Released . | . . . . Fabnet Peak Effective % . | . . . . Robots Rewired . | . . . . Allies Hacked . | . . . . Hacks Repelled . | . . . . Allies | -11 -10 -9 -9 -------- Run | Jun Mat Mat Sto Total Allies . | . . . . Largest Group . | . . . . Highest-Rated Group . | . . . . Highest-Rated Ally . | . . . . Total Orders . | . . . . Ally Attacks . | . . . . Total Damage . | . . . . Kills . | . . . . Allies Corrupted . | . . . . Allies Melted . | . . . . Intel | -11 -10 -9 -9 ------- Run | Jun Mat Mat Sto Robot Analysis Total . | . . . . Derelict Logs Recovered . | . . . . Drone Launches . | . . . . Drone Recoveries . | . . . . Exploration | -11 -10 -9 -9 ------------- Run | Jun Mat Mat Sto Turns Passed 850 | 55 229 213 353 Spaces Moved 498 | 50 124 150 174 Core 98 | 6 . . 92 Treads 11 | . . . 11 Legs 286 | . 65 150 71 Wheels 103 | 44 59 . . Hover . | . . . . Flight . | . . . . Fastest Speed 50 | 50 80 120 50 Average Speed 116 | 85 105 120 129 Slowest Speed 250 | 90 120 120 250 Overloaded Moves . | . . . . Propulsion Burnouts . | . . . . Robots Hopped . | . . . . Cave-ins Triggered . | . . . . Exploration Rate (%) 26 | 4 35 22 45 Regions Visited 3 Branch Regions 1 Pre-discovered Areas . | . . . . Known Exits Taken . | . . . . Unknown Exits Taken 3 | 1 1 1 . Scrap Searched . | . . . . Spaces Dug . | . . . . Terrain Destroyed 107 | . 18 15 74 Melee . | . . . . Projectile . | . . . . AOE 107 | . 18 15 74 Terrain Rammed . | . . . . Walls Destroyed . | . . . . Machines Disabled . | . . . . Actions | -11 -10 -9 -9 --------- Run | Jun Mat Mat Sto Total 674 | 62 170 171 271 Wait 45 | . 5 . 40 Move 495 | 49 123 149 174 Hop . | . . . . Pick Up 23 | 8 6 3 6 Fast Attach 2 | . . . 2 Attach 21 | 5 4 2 10 Detach . | . . . . Swap 4 | . 2 2 . Drop 3 | . 1 2 . Fire 64 | . 27 8 29 Melee . | . . . . Ram 8 | . . . 8 Kick 9 | . 2 5 2 Crush . | . . . . Escape Stasis . | . . . . Rewire . | . . . . Trap . | . . . . Miscellaneous . | . . . . Route ------- -11/Junkyard -10/Materials -9/Materials (discovered 2 exits: [Mat] / *Sto) -9/Storage History --------- Turn | Location | Event 5 | -11/Junkyard | Discovered new exit (range 16) 56 | -11/Junkyard | Entered Materials 175 | -10/Materials | Core integrity fell below 50% 259 | -10/Materials | Discovered new exit (range 12) 285 | -10/Materials | Entered another Materials area 285 | -9/Materials | Evolved 2 slots: Power x1, Utility x1 306 | -9/Materials | Build established: Mutant 462 | -9/Materials | Discovered new exit (range 16) 462 | -9/Materials | Discovered new exit (range 21) 498 | -9/Materials | Entered Storage 624 | -9/Storage | Lost 7 parts (2p2n3w) 764 | -9/Storage | Core integrity fell below 50% 791 | -9/Storage | Lost 4 parts (1p1n1u1w) 828 | -9/Storage | Core integrity fell below 20% 851 | -9/Storage | Destroyed by Y-45 Defender with Heavy Assault Rifle Last Messages --------------- 00763_ Slammed into A-02 Transporter. 00769_ Slammed into U-05 Engineer. 00770_ Slammed into A-02 Transporter. 00772_ Slammed into U-05 Engineer. 00778_ Slammed into W-16 Scout. 00784_ ALERT: Hostiles spotted, dispatching reinforcements to Terminal S013. 00805_ Acquired Imp. Treads. 00809_ Acquired 63 matter. 00812_ Acquired Hrd. Light Armor Plating. 00821_ Acquired Spread Laser. 00823_ Hrd. Light Armor Plating destroyed. 00827_ G-34 Mercenary destroyed. 00835_ Acquired 32 matter. 00836_ Acquired 22 matter. 00839_ Acquired Sml. Laser. 00842_ Spread Laser destroyed. 00843_ Acquired Aluminum Leg. 00847_ Imp. Treads destroyed. 00850_ G-34 Mercenary destroyed. Map ----- +----------------------------------------------------+ | "????" / % ##!#?????????????????? | | ""??" # # %##?#####??????????? | | """" ###+#+##### / #+ * ### ############ | | #?? ?????## ! = | | #? "??????#" / %%### ############ | | #+###### ????????#T [ #?##+###?????????? | | # #????#?????????#" ## ##?#T #?????????? | | # ###????????????## "# #??##" "#?????????? | | #!# #?????????????# ! """ T"# #???#[[[#?????????? | | # ###??????????#T """ ""# #???#[[[#?????????? | | * #??????????## """ ### #???#####?????????? | | = ###??????????# #?# #?????????????????? | | ############################ #?????????????????? | | #?????????????????? | | #?????????????????? | | #?????????????????# | | ############# ################### | | ###?????????# + | | # #?????????# ################### | | ##### # #########?## #### #?????????????????# | | ##### # ####Y#### #?????????????????# | | ## # ## # ###?????????????????# | | #+### / ## !# #???????????????????# | | # ## [+ +???????????????????# | | """ ##! YY# ##???????????????????# | | """ ## @# #????????????????????# | | #""" ## # #????????????????????? | | "" ?######## #????????????????????? | | "" ????????# #????????????????????? | | ?????????# ????????????????????? | | ! # #???????# ????????????????????? | | # ## #+####???????# ????????????????????? | | *%| ?????? ????????????????????? | | =* ?????? ????????????????????? | | ^^ ?????? ????????????????????? | | #############" "#####?????###????????????????????? | | ?????????????????????????????????????????????????? | | ?????????????????????????????????????????????????? | | ?????????????????????????????????????????????????? | | | | | | | | | | | | | | | | | | | | | | | +----------------------------------------------------+ Best States ------------- Heat Dissipation 28 Energy Generation 15 Energy Capacity 400 Matter Stores 300 Matter Capacity 300 Sight Range 16 Terrain Scan Density 10 ECM Strength 2 Armor Coverage 150 Evasion (%) 55 Recoil Reduction 1 Item Schematics ----------------- None Robot Schematics ------------------ None Fabricated ------------ Nothing Alien Tech Used ----------------- None Achievements -------------- None Challenges ------------ None Game ------ Seed CoolantDefenseInterrupter Manual? 0 Play Time 00:16:33 Cumulative 15.5 hours Start 2023.04.30 @ 21:10:46 End 2023.04.30 @ 21:23:16 Sessions 1 Manual Loads 0 Difficulty Rogue Special Mode None Game No. 58 Rogue 58 Adventurer 0 Explorer 0 Win Type - Total 0 Types 0/0/0/0/0/0/0/0/0 Lore% 12 Gallery% 23 Achievement% 18 Wizard Run 0 Options --------- ASCII 1 Keyboard 0 Movement Mouse Keybinds 0 Fullscreen 2 Font 16/Terminus Map View 76x50 Tactical HUD 1 Map Filters NONE Filters NONE Steam 1 RUN: b3247b87-5f13-4f24-b322-8d4e3361f8c4